Workbook

Sheet Ghid
B2: FLUX MONETAR PERSONAL
B3: Acest registru de lucru are foi de lucru cu fluxul monetar anual, lunar și zilnic. Alegeți tipul de flux monetar care funcționează cel mai bine pentru dvs. sau utilizați-le pe toate pentru a dobândi o viziune mai clară asupra fluxului monetar personal.
B5: Flux monetar zilnic | E5: Flux monetar lunar | H5: Flux monetar anual
B7: Introduceți o valoare estimată a fluxului de numerar de care dispuneți zilnic și analizați totalul lunar și anual estimat. Utilizați acest instrument pentru a vă face o idee despre modul în care se reflectă obiceiurile dvs. de cheltuire zilnice în cursul unei luni sau al unui an. | E7: Introduceți fluxul monetar lunar de care dispuneți lunar sau estimați lunile rămase pentru a vedea fluxul de numerar anticipat pentru fiecare lună a anului. | H7: Introduceți o sumă de flux monetar anual în patru foi de lucru: Venituri, cheltuieli, cheltuieli personale și economii. Vedeți defalcarea lunară și modul în care se compară totul și, cel mai important, care este pragul dvs. de rentabilitate în cifre anuale și lunare.

Sheet Flux monetar zilnic
B1: FLUX MONETAR PERSONAL
C2: Numerar disponibil total: | D2: =FluxMonetarZilnic -> 577.84 lei | F2: NOTĂ: Dacă doriți să adăugați elemente zilnice în tabel, estimați suma/valoarea lor lunară și introduceți valoarea în coloana cu luna corespunzătoare.
B4: REZUMAT ZILNIC
B5: Totaluri | C5: Zilnic | D5: Lunar | E5: Anual
B6: Venit | C6: =SUMIF(Zilnic[Tip],$B6,Zilnic[Zilnic]) -> 342.47 lei | D6: =SUMIF(Zilnic[Tip],$B6,Zilnic[Lunar]) -> 10,416.80 lei | E6: =SUMIF(Zilnic[Tip],$B6,Zilnic[Anual]) -> 125,001.55 lei
B7: Cheltuieli | C7: =SUMIF(Zilnic[Tip],$B7,Zilnic[Zilnic]) -> 136.06 lei | D7: =SUMIF(Zilnic[Tip],$B7,Zilnic[Lunar]) -> 4,138.49 lei | E7: =SUMIF(Zilnic[Tip],$B7,Zilnic[Anual]) -> 49,661.90 lei
B8: Cheltuieli personale | C8: =SUMIF(Zilnic[Tip],$B8,Zilnic[Zilnic]) -> 36.29 lei | D8: =SUMIF(Zilnic[Tip],$B8,Zilnic[Lunar]) -> 1,103.82 lei | E8: =SUMIF(Zilnic[Tip],$B8,Zilnic[Anual]) -> 13,245.85 lei
B9: Economii | C9: =SUMIF(Zilnic[Tip],$B9,Zilnic[Zilnic]) -> 63.02 lei | D9: =SUMIF(Zilnic[Tip],$B9,Zilnic[Lunar]) -> 1,916.86 lei | E9: =SUMIF(Zilnic[Tip],$B9,Zilnic[Anual]) -> 23,002.30 lei
B11: Tip | C11: Descriere | D11: Zilnic | E11: Lunar | F11: Anual
B12: Venit | C12: Salariu | D12: 246.58 lei | E12: =Zilnic[[#This Row],[Anual]]/12 -> 7,500.14 lei | F12: =Zilnic[[#This Row],[Zilnic]]*365 -> 90,001.70 lei
B13: Venit | C13: Comisioane/prime | D13: 13.70 lei | E13: =Zilnic[[#This Row],[Anual]]/12 -> 416.71 lei | F13: =Zilnic[[#This Row],[Zilnic]]*365 -> 5,000.50 lei
B14: Venit | C14: Altele 1 | D14: 82.19 lei | E14: =Zilnic[[#This Row],[Anual]]/12 -> 2,499.95 lei | F14: =Zilnic[[#This Row],[Zilnic]]*365 -> 29,999.35 lei
B15: Venit | C15: Altele 2 | D15: 0.00 lei | E15: =Zilnic[[#This Row],[Anual]]/12 -> 0.00 lei | F15: =Zilnic[[#This Row],[Zilnic]]*365 -> 0.00 lei
B16: Venit | C16: Altele 3 | D16: 0.00 lei | E16: =Zilnic[[#This Row],[Anual]]/12 -> 0.00 lei | F16: =Zilnic[[#This Row],[Zilnic]]*365 -> 0.00 lei
B17: Venit | C17: Altele 4 | D17: 0.00 lei | E17: =Zilnic[[#This Row],[Anual]]/12 -> 0.00 lei | F17: =Zilnic[[#This Row],[Zilnic]]*365 -> 0.00 lei
B18: Cheltuieli | C18: Impozite/Asigurări sociale/Asigurare medicală | D18: 41.10 lei | E18: =Zilnic[[#This Row],[Anual]]/12 -> 1,250.13 lei | F18: =Zilnic[[#This Row],[Zilnic]]*365 -> 15,001.50 lei
B19: Cheltuieli | C19: Impozit pe venit | D19: 6.85 lei | E19: =Zilnic[[#This Row],[Anual]]/12 -> 208.35 lei | F19: =Zilnic[[#This Row],[Zilnic]]*365 -> 2,500.25 lei
B20: Cheltuieli | C20: Impozit pe autovehicul/taxe | D20: 0.55 lei | E20: =Zilnic[[#This Row],[Anual]]/12 -> 16.73 lei | F20: =Zilnic[[#This Row],[Zilnic]]*365 -> 200.75 lei
B21: Cheltuieli | C21: Plăți autovehicul | D21: 10.96 lei | E21: =Zilnic[[#This Row],[Anual]]/12 -> 333.37 lei | F21: =Zilnic[[#This Row],[Zilnic]]*365 -> 4,000.40 lei
B22: Cheltuieli | C22: Credit ipotecar/Chirie | D22: 41.10 lei | E22: =Zilnic[[#This Row],[Anual]]/12 -> 1,250.13 lei | F22: =Zilnic[[#This Row],[Zilnic]]*365 -> 15,001.50 lei
B23: Cheltuieli | C23: Asigurare | D23: 0.68 lei | E23: =Zilnic[[#This Row],[Anual]]/12 -> 20.68 lei | F23: =Zilnic[[#This Row],[Zilnic]]*365 -> 248.20 lei
B24: Cheltuieli | C24: Electricitate | D24: 3.29 lei | E24: =Zilnic[[#This Row],[Anual]]/12 -> 100.07 lei | F24: =Zilnic[[#This Row],[Zilnic]]*365 -> 1,200.85 lei
B25: Cheltuieli | C25: Gaze | D25: 1.64 lei | E25: =Zilnic[[#This Row],[Anual]]/12 -> 49.88 lei | F25: =Zilnic[[#This Row],[Zilnic]]*365 -> 598.60 lei
B26: Cheltuieli | C26: Apă | D26: 1.64 lei | E26: =Zilnic[[#This Row],[Anual]]/12 -> 49.88 lei | F26: =Zilnic[[#This Row],[Zilnic]]*365 -> 598.60 lei
B27: Cheltuieli | C27: Canalizare | D27: 0.82 lei | E27: =Zilnic[[#This Row],[Anual]]/12 -> 24.94 lei | F27: =Zilnic[[#This Row],[Zilnic]]*365 -> 299.30 lei
B28: Cheltuieli | C28: Gunoi | D28: 0.41 lei | E28: =Zilnic[[#This Row],[Anual]]/12 -> 12.47 lei | F28: =Zilnic[[#This Row],[Zilnic]]*365 -> 149.65 lei
B29: Cheltuieli | C29: Telefon | D29: 1.64 lei | E29: =Zilnic[[#This Row],[Anual]]/12 -> 49.88 lei | F29: =Zilnic[[#This Row],[Zilnic]]*365 -> 598.60 lei
B30: Cheltuieli | C30: Internet | D30: 1.64 lei | E30: =Zilnic[[#This Row],[Anual]]/12 -> 49.88 lei | F30: =Zilnic[[#This Row],[Zilnic]]*365 -> 598.60 lei
B31: Cheltuieli | C31: Prime de invaliditate | D31: 4.11 lei | E31: =Zilnic[[#This Row],[Anual]]/12 -> 125.01 lei | F31: =Zilnic[[#This Row],[Zilnic]]*365 -> 1,500.15 lei
B32: Cheltuieli | C32: Alimente | D32: 13.70 lei | E32: =Zilnic[[#This Row],[Anual]]/12 -> 416.71 lei | F32: =Zilnic[[#This Row],[Zilnic]]*365 -> 5,000.50 lei
B33: Cheltuieli | C33: Îmbrăcăminte | D33: 3.29 lei | E33: =Zilnic[[#This Row],[Anual]]/12 -> 100.07 lei | F33: =Zilnic[[#This Row],[Zilnic]]*365 -> 1,200.85 lei
B34: Cheltuieli | C34: Medicale/Stomatologie/Prescripții medicale | D34: 1.64 lei | E34: =Zilnic[[#This Row],[Anual]]/12 -> 49.88 lei | F34: =Zilnic[[#This Row],[Zilnic]]*365 -> 598.60 lei
B35: Cheltuieli | C35: Autobuz | D35: 1.00 lei | E35: =Zilnic[[#This Row],[Anual]]/12 -> 30.42 lei | F35: =Zilnic[[#This Row],[Zilnic]]*365 -> 365.00 lei
B36: Cheltuieli | C36: Altele 2 | D36: 0.00 lei | E36: =Zilnic[[#This Row],[Anual]]/12 -> 0.00 lei | F36: =Zilnic[[#This Row],[Zilnic]]*365 -> 0.00 lei
B37: Cheltuieli | C37: Altele 3 | D37: 0.00 lei | E37: =Zilnic[[#This Row],[Anual]]/12 -> 0.00 lei | F37: =Zilnic[[#This Row],[Zilnic]]*365 -> 0.00 lei
B38: Cheltuieli | C38: Altele 4 | D38: 0.00 lei | E38: =Zilnic[[#This Row],[Anual]]/12 -> 0.00 lei | F38: =Zilnic[[#This Row],[Zilnic]]*365 -> 0.00 lei
B39: Cheltuieli personale | C39: Mese | D39: 3.29 lei | E39: =Zilnic[[#This Row],[Anual]]/12 -> 100.07 lei | F39: =Zilnic[[#This Row],[Zilnic]]*365 -> 1,200.85 lei
B40: Cheltuieli personale | C40: Cadouri | D40: 1.64 lei | E40: =Zilnic[[#This Row],[Anual]]/12 -> 49.88 lei | F40: =Zilnic[[#This Row],[Zilnic]]*365 -> 598.60 lei
B41: Cheltuieli personale | C41: Călătorie | D41: 6.16 lei | E41: =Zilnic[[#This Row],[Anual]]/12 -> 187.37 lei | F41: =Zilnic[[#This Row],[Zilnic]]*365 -> 2,248.40 lei
B42: Cheltuieli personale | C42: Distracție | D42: 3.29 lei | E42: =Zilnic[[#This Row],[Anual]]/12 -> 100.07 lei | F42: =Zilnic[[#This Row],[Zilnic]]*365 -> 1,200.85 lei
B43: Cheltuieli personale | C43: Îngrijire personală | D43: 0.82 lei | E43: =Zilnic[[#This Row],[Anual]]/12 -> 24.94 lei | F43: =Zilnic[[#This Row],[Zilnic]]*365 -> 299.30 lei
B44: Cheltuieli personale | C44: Cumpărături | D44: 5.48 lei | E44: =Zilnic[[#This Row],[Anual]]/12 -> 166.68 lei | F44: =Zilnic[[#This Row],[Zilnic]]*365 -> 2,000.20 lei
B45: Cheltuieli personale | C45: Caritate | D45: 1.64 lei | E45: =Zilnic[[#This Row],[Anual]]/12 -> 49.88 lei | F45: =Zilnic[[#This Row],[Zilnic]]*365 -> 598.60 lei
B46: Cheltuieli personale | C46: Club/apartenență la organizații | D46: 0.82 lei | E46: =Zilnic[[#This Row],[Anual]]/12 -> 24.94 lei | F46: =Zilnic[[#This Row],[Zilnic]]*365 -> 299.30 lei
B47: Cheltuieli personale | C47: Renovare casă | D47: 13.15 lei | E47: =Zilnic[[#This Row],[Anual]]/12 -> 399.98 lei | F47: =Zilnic[[#This Row],[Zilnic]]*365 -> 4,799.75 lei
B48: Cheltuieli personale | C48: Altele 1 | D48: 0.00 lei | E48: =Zilnic[[#This Row],[Anual]]/12 -> 0.00 lei | F48: =Zilnic[[#This Row],[Zilnic]]*365 -> 0.00 lei
B49: Cheltuieli personale | C49: Altele 2 | D49: 0.00 lei | E49: =Zilnic[[#This Row],[Anual]]/12 -> 0.00 lei | F49: =Zilnic[[#This Row],[Zilnic]]*365 -> 0.00 lei
B50: Economii | C50: Rezerve de numerar | D50: 13.70 lei | E50: =Zilnic[[#This Row],[Anual]]/12 -> 416.71 lei | F50: =Zilnic[[#This Row],[Zilnic]]*365 -> 5,000.50 lei
B51: Economii | C51: Plan de contribuții pensie/etc | D51: 32.88 lei | E51: =Zilnic[[#This Row],[Anual]]/12 -> 1,000.10 lei | F51: =Zilnic[[#This Row],[Zilnic]]*365 -> 12,001.20 lei
B52: Economii | C52: Cont de economii | D52: 16.44 lei | E52: =Zilnic[[#This Row],[Anual]]/12 -> 500.05 lei | F52: =Zilnic[[#This Row],[Zilnic]]*365 -> 6,000.60 lei
B53: Economii | C53: Altele 1 | D53: 0.00 lei | E53: =Zilnic[[#This Row],[Anual]]/12 -> 0.00 lei | F53: =Zilnic[[#This Row],[Zilnic]]*365 -> 0.00 lei
B54: Economii | C54: Altele 2 | D54: 0.00 lei | E54: =Zilnic[[#This Row],[Anual]]/12 -> 0.00 lei | F54: =Zilnic[[#This Row],[Zilnic]]*365 -> 0.00 lei
B55: Total | D55: =SUMIF(Zilnic[Tip],"Venit",Zilnic[Zilnic])-SUMIF(Zilnic[Tip],"<>Venit",Zilnic[Zilnic]) -> 107.10 lei | E55: =SUMIF(Zilnic[Tip],"Venit",Zilnic[Lunar])-SUMIF(Zilnic[Tip],"<>Venit",Zilnic[Lunar]) -> 3,257.63 lei | F55: =SUMIF(Zilnic[Tip],"Venit",Zilnic[Anual])-SUMIF(Zilnic[Tip],"<>Venit",Zilnic[Anual]) -> 39,091.50 lei

Sheet Flux monetar lunar
B1: FLUX MONETAR PERSONAL
C2: Total flux monetar lunar: | D2: =FluxMonetarLunarLaZi -> 18,380.00 lei | F2: NOTĂ: Pentru elementele zilnice, estimați suma/valoarea lunară și introduceți valoarea respectivă în coloana cu luna corespunzătoare.
B4: Tip | C4: Descriere | D4: Ian | E4: Feb | F4: Mar | G4: Apr | H4: Mai | I4: Iun | J4: Iul | K4: Aug | L4: Sep | M4: Oct | N4: Nov | O4: Dec | P4: Total
B5: Venit | C5: Salariu | D5: 7,500.00 lei | E5: 7,500.00 lei | F5: 7,500.00 lei | G5: 7,500.00 lei | H5: 7,500.00 lei | I5: 7,500.00 lei | P5: =SUM(Lunar[[#This Row],[Ian]:[Dec]]) -> 45,000.00 lei
B6: Venit | C6: Comisioane/prime | D6: 400.00 lei | E6: 400.00 lei | F6: 500.00 lei | G6: 200.00 lei | H6: 0.00 lei | I6: 600.00 lei | P6: =SUM(Lunar[[#This Row],[Ian]:[Dec]]) -> 2,100.00 lei
B7: Venit | C7: Altele 1 | D7: 2,500.00 lei | E7: 2,500.00 lei | F7: 2,500.00 lei | G7: 2,500.00 lei | H7: 2,500.00 lei | I7: 2,500.00 lei | P7: =SUM(Lunar[[#This Row],[Ian]:[Dec]]) -> 15,000.00 lei
B8: Venit | C8: Altele 2 | D8: 0.00 lei | E8: 0.00 lei | F8: 0.00 lei | G8: 0.00 lei | H8: 0.00 lei | I8: 0.00 lei | P8: =SUM(Lunar[[#This Row],[Ian]:[Dec]]) -> 0.00 lei
B9: Venit | C9: Altele 3 | D9: 0.00 lei | E9: 0.00 lei | F9: 0.00 lei | G9: 0.00 lei | H9: 0.00 lei | I9: 0.00 lei | P9: =SUM(Lunar[[#This Row],[Ian]:[Dec]]) -> 0.00 lei
B10: Venit | C10: Altele 4 | D10: 0.00 lei | E10: 0.00 lei | F10: 0.00 lei | G10: 0.00 lei | H10: 0.00 lei | I10: 0.00 lei | P10: =SUM(Lunar[[#This Row],[Ian]:[Dec]]) -> 0.00 lei
B11: Cheltuieli | C11: Impozite/Asigurări sociale/Asigurare medicală | D11: 1,250.00 lei | E11: 1,250.00 lei | F11: 1,250.00 lei | G11: 1,250.00 lei | H11: 1,250.00 lei | I11: 1,250.00 lei | P11: =SUM(Lunar[[#This Row],[Ian]:[Dec]]) -> 7,500.00 lei
B12: Cheltuieli | C12: Impozit pe venit | D12: 208.33 lei | E12: 208.33 lei | F12: 208.33 lei | G12: 208.33 lei | H12: 208.33 lei | I12: 208.33 lei | P12: =SUM(Lunar[[#This Row],[Ian]:[Dec]]) -> 1,250.00 lei
B13: Cheltuieli | C13: Impozit pe autovehicul/taxe | D13: 16.67 lei | E13: 16.67 lei | F13: 16.67 lei | G13: 16.67 lei | H13: 16.67 lei | I13: 16.67 lei | P13: =SUM(Lunar[[#This Row],[Ian]:[Dec]]) -> 100.00 lei
B14: Cheltuieli | C14: Plăți autovehicul | D14: 333.33 lei | E14: 333.33 lei | F14: 333.33 lei | G14: 333.33 lei | H14: 333.33 lei | I14: 333.33 lei | P14: =SUM(Lunar[[#This Row],[Ian]:[Dec]]) -> 2,000.00 lei
B15: Cheltuieli | C15: Credit ipotecar/Chirie | D15: 1,250.00 lei | E15: 1,250.00 lei | F15: 1,250.00 lei | G15: 1,250.00 lei | H15: 1,250.00 lei | I15: 1,250.00 lei | P15: =SUM(Lunar[[#This Row],[Ian]:[Dec]]) -> 7,500.00 lei
B16: Cheltuieli | C16: Asigurare | D16: 25.00 lei | E16: 25.00 lei | F16: 25.00 lei | G16: 25.00 lei | H16: 25.00 lei | I16: 25.00 lei | P16: =SUM(Lunar[[#This Row],[Ian]:[Dec]]) -> 150.00 lei
B17: Cheltuieli | C17: Electricitate | D17: 100.00 lei | E17: 100.00 lei | F17: 100.00 lei | G17: 100.00 lei | H17: 100.00 lei | I17: 100.00 lei | P17: =SUM(Lunar[[#This Row],[Ian]:[Dec]]) -> 600.00 lei
B18: Cheltuieli | C18: Gaze | D18: 50.00 lei | E18: 50.00 lei | F18: 50.00 lei | G18: 50.00 lei | H18: 50.00 lei | I18: 50.00 lei | P18: =SUM(Lunar[[#This Row],[Ian]:[Dec]]) -> 300.00 lei
B19: Cheltuieli | C19: Apă | D19: 50.00 lei | E19: 50.00 lei | F19: 50.00 lei | G19: 50.00 lei | H19: 50.00 lei | I19: 50.00 lei | P19: =SUM(Lunar[[#This Row],[Ian]:[Dec]]) -> 300.00 lei
B20: Cheltuieli | C20: Canalizare | D20: 25.00 lei | E20: 25.00 lei | F20: 25.00 lei | G20: 25.00 lei | H20: 25.00 lei | I20: 25.00 lei | P20: =SUM(Lunar[[#This Row],[Ian]:[Dec]]) -> 150.00 lei
B21: Cheltuieli | C21: Gunoi | D21: 12.50 lei | E21: 12.50 lei | F21: 12.50 lei | G21: 12.50 lei | H21: 12.50 lei | I21: 12.50 lei | P21: =SUM(Lunar[[#This Row],[Ian]:[Dec]]) -> 75.00 lei
B22: Cheltuieli | C22: Telefon | D22: 50.00 lei | E22: 50.00 lei | F22: 50.00 lei | G22: 50.00 lei | H22: 50.00 lei | I22: 50.00 lei | P22: =SUM(Lunar[[#This Row],[Ian]:[Dec]]) -> 300.00 lei
B23: Cheltuieli | C23: Internet | D23: 50.00 lei | E23: 50.00 lei | F23: 50.00 lei | G23: 50.00 lei | H23: 50.00 lei | I23: 50.00 lei | P23: =SUM(Lunar[[#This Row],[Ian]:[Dec]]) -> 300.00 lei
B24: Cheltuieli | C24: Prime de invaliditate | D24: 125.00 lei | E24: 125.00 lei | F24: 125.00 lei | G24: 125.00 lei | H24: 125.00 lei | I24: 125.00 lei | P24: =SUM(Lunar[[#This Row],[Ian]:[Dec]]) -> 750.00 lei
B25: Cheltuieli | C25: Alimente | D25: 400.00 lei | E25: 500.00 lei | F25: 450.00 lei | G25: 400.00 lei | H25: 450.00 lei | I25: 425.00 lei | P25: =SUM(Lunar[[#This Row],[Ian]:[Dec]]) -> 2,625.00 lei
B26: Cheltuieli | C26: Îmbrăcăminte | D26: 50.00 lei | E26: 75.00 lei | F26: 100.00 lei | G26: 75.00 lei | H26: 125.00 lei | I26: 75.00 lei | P26: =SUM(Lunar[[#This Row],[Ian]:[Dec]]) -> 500.00 lei
B27: Cheltuieli | C27: Medicale/Stomatologie/Prescripții medicale | D27: 50.00 lei | E27: 10.00 lei | F27: 25.00 lei | G27: 25.00 lei | H27: 20.00 lei | I27: 70.00 lei | P27: =SUM(Lunar[[#This Row],[Ian]:[Dec]]) -> 200.00 lei
B28: Cheltuieli | C28: Autobuz | D28: 30.00 lei | E28: 30.00 lei | F28: 30.00 lei | G28: 20.00 lei | H28: 30.00 lei | I28: 30.00 lei | P28: =SUM(Lunar[[#This Row],[Ian]:[Dec]]) -> 170.00 lei
B29: Cheltuieli | C29: Altele 2 | D29: 0.00 lei | E29: 0.00 lei | F29: 0.00 lei | G29: 0.00 lei | H29: 0.00 lei | I29: 0.00 lei | P29: =SUM(Lunar[[#This Row],[Ian]:[Dec]]) -> 0.00 lei
B30: Cheltuieli | C30: Altele 3 | D30: 0.00 lei | E30: 0.00 lei | F30: 0.00 lei | G30: 0.00 lei | H30: 0.00 lei | I30: 0.00 lei | P30: =SUM(Lunar[[#This Row],[Ian]:[Dec]]) -> 0.00 lei
B31: Cheltuieli | C31: Altele 4 | D31: 0.00 lei | E31: 0.00 lei | F31: 0.00 lei | G31: 0.00 lei | H31: 0.00 lei | I31: 0.00 lei | P31: =SUM(Lunar[[#This Row],[Ian]:[Dec]]) -> 0.00 lei
B32: Cheltuieli personale | C32: Mese | D32: 50.00 lei | E32: 150.00 lei | F32: 100.00 lei | G32: 50.00 lei | H32: 150.00 lei | I32: 100.00 lei | P32: =SUM(Lunar[[#This Row],[Ian]:[Dec]]) -> 600.00 lei
B33: Cheltuieli personale | C33: Cadouri | D33: 25.00 lei | E33: 75.00 lei | F33: 50.00 lei | G33: 25.00 lei | H33: 75.00 lei | I33: 50.00 lei | P33: =SUM(Lunar[[#This Row],[Ian]:[Dec]]) -> 300.00 lei
B34: Cheltuieli personale | C34: Călătorie | D34: 0.00 lei | E34: 0.00 lei | F34: 1,000.00 lei | G34: 0.00 lei | H34: 0.00 lei | I34: 1,000.00 lei | P34: =SUM(Lunar[[#This Row],[Ian]:[Dec]]) -> 2,000.00 lei
B35: Cheltuieli personale | C35: Distracție | D35: 50.00 lei | E35: 150.00 lei | F35: 100.00 lei | G35: 50.00 lei | H35: 150.00 lei | I35: 100.00 lei | P35: =SUM(Lunar[[#This Row],[Ian]:[Dec]]) -> 600.00 lei
B36: Cheltuieli personale | C36: Îngrijire personală | D36: 15.00 lei | E36: 25.00 lei | F36: 35.00 lei | G36: 15.00 lei | H36: 25.00 lei | I36: 35.00 lei | P36: =SUM(Lunar[[#This Row],[Ian]:[Dec]]) -> 150.00 lei
B37: Cheltuieli personale | C37: Cumpărături | D37: 100.00 lei | E37: 200.00 lei | F37: 150.00 lei | G37: 175.00 lei | H37: 150.00 lei | I37: 175.00 lei | P37: =SUM(Lunar[[#This Row],[Ian]:[Dec]]) -> 950.00 lei
B38: Cheltuieli personale | C38: Caritate | D38: 50.00 lei | E38: 50.00 lei | F38: 50.00 lei | G38: 50.00 lei | H38: 50.00 lei | I38: 50.00 lei | P38: =SUM(Lunar[[#This Row],[Ian]:[Dec]]) -> 300.00 lei
B39: Cheltuieli personale | C39: Club/apartenență la organizații | D39: 25.00 lei | E39: 25.00 lei | F39: 25.00 lei | G39: 25.00 lei | H39: 25.00 lei | I39: 25.00 lei | P39: =SUM(Lunar[[#This Row],[Ian]:[Dec]]) -> 150.00 lei
B40: Cheltuieli personale | C40: Renovare casă | D40: 400.00 lei | E40: 400.00 lei | F40: 400.00 lei | G40: 400.00 lei | H40: 400.00 lei | I40: 400.00 lei | P40: =SUM(Lunar[[#This Row],[Ian]:[Dec]]) -> 2,400.00 lei
B41: Cheltuieli personale | C41: Altele 1 | D41: 0.00 lei | E41: 0.00 lei | F41: 0.00 lei | G41: 0.00 lei | H41: 0.00 lei | I41: 0.00 lei | P41: =SUM(Lunar[[#This Row],[Ian]:[Dec]]) -> 0.00 lei
B42: Cheltuieli personale | C42: Altele 2 | D42: 0.00 lei | E42: 0.00 lei | F42: 0.00 lei | G42: 0.00 lei | H42: 0.00 lei | I42: 0.00 lei | P42: =SUM(Lunar[[#This Row],[Ian]:[Dec]]) -> 0.00 lei
B43: Economii | C43: Rezerve de numerar | D43: 416.67 lei | E43: 416.67 lei | F43: 416.67 lei | G43: 416.67 lei | H43: 416.67 lei | I43: 416.67 lei | P43: =SUM(Lunar[[#This Row],[Ian]:[Dec]]) -> 2,500.00 lei
B44: Economii | C44: Plan de contribuții pensie/etc | D44: 1,000.00 lei | E44: 1,000.00 lei | F44: 1,000.00 lei | G44: 1,000.00 lei | H44: 1,000.00 lei | I44: 1,000.00 lei | P44: =SUM(Lunar[[#This Row],[Ian]:[Dec]]) -> 6,000.00 lei
B45: Economii | C45: Cont de economii | D45: 500.00 lei | E45: 500.00 lei | F45: 500.00 lei | G45: 500.00 lei | H45: 500.00 lei | I45: 500.00 lei | P45: =SUM(Lunar[[#This Row],[Ian]:[Dec]]) -> 3,000.00 lei
B46: Economii | C46: Altele 1 | D46: 0.00 lei | E46: 0.00 lei | F46: 0.00 lei | G46: 0.00 lei | H46: 0.00 lei | I46: 0.00 lei | P46: =SUM(Lunar[[#This Row],[Ian]:[Dec]]) -> 0.00 lei
B47: Economii | C47: Altele 2 | D47: 0.00 lei | E47: 0.00 lei | F47: 0.00 lei | G47: 0.00 lei | H47: 0.00 lei | I47: 0.00 lei | P47: =SUM(Lunar[[#This Row],[Ian]:[Dec]]) -> 0.00 lei
B48: Total | D48: =SUMIF(Lunar[Tip],"Venit",Lunar[Ian])-SUMIF(Lunar[Tip],"<>Venit",Lunar[Ian]) -> 3,692.50 lei | E48: =SUMIF(Lunar[Tip],"Venit",Lunar[Feb])-SUMIF(Lunar[Tip],"<>Venit",Lunar[Feb]) -> 3,247.50 lei | F48: =SUMIF(Lunar[Tip],"Venit",Lunar[Mar])-SUMIF(Lunar[Tip],"<>Venit",Lunar[Mar]) -> 2,522.50 lei | G48: =SUMIF(Lunar[Tip],"Venit",Lunar[Apr])-SUMIF(Lunar[Tip],"<>Venit",Lunar[Apr]) -> 3,427.50 lei | H48: =SUMIF(Lunar[Tip],"Venit",Lunar[Mai])-SUMIF(Lunar[Tip],"<>Venit",Lunar[Mai]) -> 2,887.50 lei | I48: =SUMIF(Lunar[Tip],"Venit",Lunar[Iun])-SUMIF(Lunar[Tip],"<>Venit",Lunar[Iun]) -> 2,602.50 lei | J48: =SUMIF(Lunar[Tip],"Venit",Lunar[Iul])-SUMIF(Lunar[Tip],"<>Venit",Lunar[Iul]) -> 0.00 lei | K48: =SUMIF(Lunar[Tip],"Venit",Lunar[Aug])-SUMIF(Lunar[Tip],"<>Venit",Lunar[Aug]) -> 0.00 lei | L48: =SUMIF(Lunar[Tip],"Venit",Lunar[Sep])-SUMIF(Lunar[Tip],"<>Venit",Lunar[Sep]) -> 0.00 lei | M48: =SUMIF(Lunar[Tip],"Venit",Lunar[Oct])-SUMIF(Lunar[Tip],"<>Venit",Lunar[Oct]) -> 0.00 lei | N48: =SUMIF(Lunar[Tip],"Venit",Lunar[Nov])-SUMIF(Lunar[Tip],"<>Venit",Lunar[Nov]) -> 0.00 lei | O48: =SUMIF(Lunar[Tip],"Venit",Lunar[Dec])-SUMIF(Lunar[Tip],"<>Venit",Lunar[Dec]) -> 0.00 lei | P48: =SUMIF(Lunar[Tip],"Venit",Lunar[Total])-SUMIF(Lunar[Tip],"<>Venit",Lunar[Total]) -> 18,380.00 lei

Sheet Flux monetar anual
B1: FLUX MONETAR PERSONAL
C2: Flux monetar total la zi: | D2: =AnnualCashFlowToDate -> 42,250.00 lei | G2: Aceasta este o estimare anuală. Utilizați această foaie de lucru dacă doriți să vizualizați sumele anuale cu valori lunare estimate. Utilizați foile de lucru Venituri, Cheltuieli, Cheltuieli personale și Economii pentru a introduce articole.
B4: REZUMAT VENIT | F4: REZUMAT CHELTUIELI | J4: REZUMAT CHELTUIELI PERSONALE | N4: REZUMAT ECONOMII
B5: Total anual: | C5: =Venit!C11 -> 125,000.00 lei | F5: Total anual: | G5: =Cheltuieli[[#Totals],[Anual ]] -> 46,500.00 lei | J5: Total anual: | K5: =CheltuieliPersonale[[#Totals],[Anual ]] -> 13,250.00 lei | N5: Total anual: | O5: =Economii[[#Totals],[Anual ]] -> 23,000.00 lei
B8: Total lunar: | C8: =Venit!D11 -> 10,416.67 lei | F8: Total lunar: | G8: =Cheltuieli[[#Totals],[Lunar ]] -> 3,875.00 lei | J8: Total lunar: | K8: =CheltuieliPersonale[[#Totals],[Lunar ]] -> 1,104.17 lei | N8: Total lunar: | O8: =Economii!D10 -> 1,916.67 lei
R10: Etichete de rând | S10: Venit anual | U10: Etichete de rând | V10: Suma anuală | X10: Etichete de rând | Y10: Suma anuală | AA10: Etichete de rând | AB10: Suma anuală

Sheet Venit
B1: FLUX MONETAR PERSONAL
C2: Flux monetar total la zi: | D2: =AnnualCashFlowToDate -> 42,250.00 lei | F2: Aceasta este o estimare anuală. Utilizați această foaie de lucru dacă doriți să vizualizați sumele anuale cu valori lunare estimate. Dacă doriți să adăugați articole zilnice în tabele, estimați suma/valoarea lor anuală și introduceți valoarea în coloana Anual.
B4: Venit | C4: Anual | D4: Lunar
B5: Salariu | C5: 90,000.00 lei | D5: =Venit[[#This Row],[Anual ]]/12 -> 7,500.00 lei
B6: Comisioane/prime | C6: 5,000.00 lei | D6: =Venit[[#This Row],[Anual ]]/12 -> 416.67 lei
B7: Altele 1 | C7: 30,000.00 lei | D7: =Venit[[#This Row],[Anual ]]/12 -> 2,500.00 lei
B8: Altele 2 | C8: 0.00 lei | D8: =Venit[[#This Row],[Anual ]]/12 -> 0.00 lei
B9: Altele 3 | C9: 0.00 lei | D9: =Venit[[#This Row],[Anual ]]/12 -> 0.00 lei
B10: Altele 4 | C10: 0.00 lei | D10: =Venit[[#This Row],[Anual ]]/12 -> 0.00 lei
B11: Total | C11: =SUBTOTAL(109,Venit[[Anual ]]) -> 125,000.00 lei | D11: =SUBTOTAL(109,Venit[[Lunar ]]) -> 10,416.67 lei

Sheet Cheltuieli
B1: FLUX MONETAR PERSONAL
C2: Flux monetar total la zi: | D2: =AnnualCashFlowToDate -> 42,250.00 lei | F2: Aceasta este o estimare anuală. Utilizați această foaie de lucru dacă doriți să vizualizați sumele anuale cu valori lunare estimate Dacă doriți să adăugați articole zilnice în tabele, estimați suma/valoarea lor anuală și introduceți valoarea în coloana Anual.
B4: Cheltuieli | C4: Anual | D4: Lunar
B5: Impozite/Asigurări sociale/Asigurare medicală | C5: 12,500.00 lei | D5: =Cheltuieli[[#This Row],[Anual ]]/12 -> 1,041.67 lei
B6: Impozit pe venit | C6: 2,500.00 lei | D6: =Cheltuieli[[#This Row],[Anual ]]/12 -> 208.33 lei
B7: Impozit pe autovehicul/taxe | C7: 200.00 lei | D7: =Cheltuieli[[#This Row],[Anual ]]/12 -> 16.67 lei
B8: Plăți autovehicul | C8: 4,000.00 lei | D8: =Cheltuieli[[#This Row],[Anual ]]/12 -> 333.33 lei
B9: Credit ipotecar/Chirie | C9: 15,000.00 lei | D9: =Cheltuieli[[#This Row],[Anual ]]/12 -> 1,250.00 lei
B10: Asigurare | C10: 250.00 lei | D10: =Cheltuieli[[#This Row],[Anual ]]/12 -> 20.83 lei
B11: Electricitate | C11: 1,200.00 lei | D11: =Cheltuieli[[#This Row],[Anual ]]/12 -> 100.00 lei
B12: Gaze | C12: 600.00 lei | D12: =Cheltuieli[[#This Row],[Anual ]]/12 -> 50.00 lei
B13: Apă/canalizare | C13: 600.00 lei | D13: =Cheltuieli[[#This Row],[Anual ]]/12 -> 50.00 lei
B14: Gunoi | C14: 150.00 lei | D14: =Cheltuieli[[#This Row],[Anual ]]/12 -> 12.50 lei
B15: Telefon | C15: 600.00 lei | D15: =Cheltuieli[[#This Row],[Anual ]]/12 -> 50.00 lei
B16: Internet | C16: 600.00 lei | D16: =Cheltuieli[[#This Row],[Anual ]]/12 -> 50.00 lei
B17: Prime de invaliditate | C17: 1,500.00 lei | D17: =Cheltuieli[[#This Row],[Anual ]]/12 -> 125.00 lei
B18: Alimente | C18: 5,000.00 lei | D18: =Cheltuieli[[#This Row],[Anual ]]/12 -> 416.67 lei
B19: Îmbrăcăminte | C19: 1,200.00 lei | D19: =Cheltuieli[[#This Row],[Anual ]]/12 -> 100.00 lei
B20: Medicale/Stomatologie/Prescripții medicale | C20: 600.00 lei | D20: =Cheltuieli[[#This Row],[Anual ]]/12 -> 50.00 lei
B21: Altele 1 | C21: 0.00 lei | D21: =Cheltuieli[[#This Row],[Anual ]]/12 -> 0.00 lei
B22: Altele 2 | C22: 0.00 lei | D22: =Cheltuieli[[#This Row],[Anual ]]/12 -> 0.00 lei
B23: Total | C23: =SUBTOTAL(109,Cheltuieli[[Anual ]]) -> 46,500.00 lei | D23: =SUBTOTAL(109,Cheltuieli[[Lunar ]]) -> 3,875.00 lei

Sheet Cheltuieli personale
B1: FLUX MONETAR PERSONAL
C2: Flux monetar total la zi: | D2: =AnnualCashFlowToDate -> 42,250.00 lei | F2: Aceasta este o estimare anuală. Utilizați această foaie de lucru dacă doriți să vizualizați sumele anuale cu valori lunare estimate Dacă doriți să adăugați articole zilnice în tabele, estimați suma/valoarea lor anuală și introduceți valoarea în coloana Anual.
B4: Cheltuieli personale | C4: Anual | D4: Lunar
B5: Mese în oraș | C5: 1,200.00 lei | D5: =CheltuieliPersonale[[#This Row],[Anual ]]/12 -> 100.00 lei
B6: Cadouri | C6: 600.00 lei | D6: =CheltuieliPersonale[[#This Row],[Anual ]]/12 -> 50.00 lei
B7: Călătorie | C7: 2,250.00 lei | D7: =CheltuieliPersonale[[#This Row],[Anual ]]/12 -> 187.50 lei
B8: Distracție | C8: 1,200.00 lei | D8: =CheltuieliPersonale[[#This Row],[Anual ]]/12 -> 100.00 lei
B9: Îngrijire personală | C9: 300.00 lei | D9: =CheltuieliPersonale[[#This Row],[Anual ]]/12 -> 25.00 lei
B10: Cumpărături | C10: 2,000.00 lei | D10: =CheltuieliPersonale[[#This Row],[Anual ]]/12 -> 166.67 lei
B11: Caritate | C11: 600.00 lei | D11: =CheltuieliPersonale[[#This Row],[Anual ]]/12 -> 50.00 lei
B12: Club/apartenență la organizații | C12: 300.00 lei | D12: =CheltuieliPersonale[[#This Row],[Anual ]]/12 -> 25.00 lei
B13: Renovare casă | C13: 4,800.00 lei | D13: =CheltuieliPersonale[[#This Row],[Anual ]]/12 -> 400.00 lei
B14: Altele 1 | C14: 0.00 lei | D14: =CheltuieliPersonale[[#This Row],[Anual ]]/12 -> 0.00 lei
B15: Altele 2 | C15: 0.00 lei | D15: =CheltuieliPersonale[[#This Row],[Anual ]]/12 -> 0.00 lei
B16: Total | C16: =SUBTOTAL(109,CheltuieliPersonale[[Anual ]]) -> 13,250.00 lei | D16: =SUBTOTAL(109,CheltuieliPersonale[[Lunar ]]) -> 1,104.17 lei

Sheet Economii
B1: FLUX MONETAR PERSONAL
C2: Flux monetar total la zi: | D2: =AnnualCashFlowToDate -> 42,250.00 lei | F2: Aceasta este o estimare anuală. Utilizați această foaie de lucru dacă doriți să vizualizați sumele anuale cu valori lunare estimate Dacă doriți să adăugați articole zilnice în tabele, estimați suma/valoarea lor anuală și introduceți valoarea în coloana Anual.
B4: Economii | C4: Anual | D4: Lunar
B5: Rezerve de numerar | C5: 5,000.00 lei | D5: =Economii[[#This Row],[Anual ]]/12 -> 416.67 lei
B6: Plan de contribuții pensie/etc | C6: 12,000.00 lei | D6: =Economii[[#This Row],[Anual ]]/12 -> 1,000.00 lei
B7: Economii/Investiții | C7: 6,000.00 lei | D7: =Economii[[#This Row],[Anual ]]/12 -> 500.00 lei
B8: Altele 1 | C8: 0.00 lei | D8: =Economii[[#This Row],[Anual ]]/12 -> 0.00 lei
B9: Altele 2 | C9: 0.00 lei | D9: =Economii[[#This Row],[Anual ]]/12 -> 0.00 lei
B10: Total | C10: =SUBTOTAL(109,Economii[[Anual ]]) -> 23,000.00 lei | D10: =SUBTOTAL(109,Economii[[Lunar ]]) -> 1,916.67 lei
